Cogmind - Beta 16 @@@ ROGUE MODE // 2025.10.25 @ 16:58:30 Player: Moodge Result: Destroyed by H-61 Shepherd with Heavy Assault Cannon Performance ------------- Evolutions (2) 1000 Regions Visited (3) 600 Robots Destroyed (13) 65 Value Destroyed (426) 426 Prototype IDs (0) 0 Alien Tech Used (0) 0 Bonus (0) 0 TOTAL SCORE: 2091 Bonus ------- None Cogmind --------- Core Integrity 0/550 Matter 165/300 Energy 78/100 System Corruption 0% Temperature Cool (0) Movement Core (50) Location -8/Materials Parts ------- > --- POWER (2) -------- (None) > --- PROPULSION (3) --- (None) > --- UTILITY (4) ------ Advanced Weight Redist. System System Shield > --- WEAPON (2) ------- (None) > --- INVENTORY (5) ---- Deuterium Engine Improved Aluminum Leg High-capacity Storage Unit Datajack Peak State ------------ > --- POWER ------------ Deuterium Engine Light Deuterium Engine > --- PROPULSION ------- (None) > --- UTILITY ---------- Advanced Weight Redist. System Reaction Control System > --- WEAPON ----------- Scythe Scythe > --- INVENTORY -------- High-capacity Storage Unit [Rating: 18] Favorites ----------- Power Deuterium Engine Engine Deuterium Engine Propulsion Light Treads Treads Light Treads Flight Unit Flight Unit Utility Small Storage Unit Device Advanced Weight Redist. System Storage Small Storage Unit Hackware System Shield Weapon Light Assault Rifle Ballistic Gun Light Assault Rifle Launcher Mini Grenade Launcher Slashing Weapon Scythe Build | -11 -10 -9 -8 ------- Run | Yrd Mat Mat Mat Slots Evolved 4 | . . 2 2 Power 1 | . . 1 . Propulsion 1 | . . . 1 Utility 2 | . . 1 1 Weapon . | . . . . Parts Attached 20 | 7 3 2 8 Power 5 | 2 1 . 2 Engine 5 | 2 1 . 2 Core . | . . . . Reactor . | . . . . Propulsion 5 | 2 2 . 1 Treads 3 | 2 . . 1 Leg . | . . . . Wheel . | . . . . Hover . | . . . . Flight 2 | . 2 . . Utility 5 | 1 . 1 3 Device 2 | . . . 2 Storage 2 | 1 . 1 . Processor . | . . . . Hackware 1 | . . . 1 Protection . | . . . . Artifact . | . . . . Weapon 5 | 2 . 1 2 Energy Gun . | . . . . Energy Cannon . | . . . . Ballistic Gun 2 | 2 . . . Ballistic Cannon . | . . . . Launcher 1 | . . 1 . Special Weapon . | . . . . Impact Weapon . | . . . . Slashing Weapon 2 | . . . 2 Piercing Weapon . | . . . . Special Melee Weapon . | . . . . Unidentified Prototypes . | . . . . Parts Lost 8 | . . 3 5 Power 2 | . . 1 1 Propulsion 2 | . . 1 1 Utility 1 | . . . 1 Weapon 3 | . . 1 2 Highest Loss Streak 4 | . . 3 4 To Critical Strikes . | . . . . Average Backups 1 | 1 . . 2 Power . | . . . . Propulsion . | . . . . Utility . | . . . 1 Weapon . | . . . . Tool/Special . | . . . . Unused Backups 3 | 1 1 . 1 Power . | . . . . Propulsion 2 | . 1 . 1 Utility . | . . . . Weapon 1 | 1 . . . Tool/Special . | . . . . Average Slot Usage (%) 55 | . 85 50 39 Engine 10 | . 14 5 9 Treads 7 | . 25 . . Flight 6 | . 2 19 4 Device 6 | . . . 12 Storage 5 | . 14 7 . Ballistic Gun 12 | . 28 15 1 Launcher 1 | . . 2 2 Slashing Weapon 4 | . . . 8 Peak Build Rating 18 | 6 6 6 18 Average Rating 8 | 4 6 4 11 On Entrance 3 | . 6 6 3 Avg Prop Armor Cover (%) . | . . . . Naked Turns . | . . . . Heaviest Build 19 | 12 12 10 19 Greatest Support 40 | 40 40 8 29 Greatest Overweight (x) 2 | 2 1 1 2 Average Overweight (x) . | . . . . Largest Inventory Capacity 20 | 8 8 20 8 Average Capacity 6 | 7 8 7 5 Most Carried 6 | 6 4 3 4 Average Carried 1 | 1 . 1 2 Final Capacity 8 | 8 8 5 5 Final Carried 4 | . . 3 4 Class Distribution -------------------- 100% | Mutant Dominant Class ---------------- Mutant | -10/Materials Mutant | -9/Materials Mutant | -8/Materials Resources | -11 -10 -9 -8 ----------- Run | Yrd Mat Mat Mat Matter Collected 368 | 180 136 . 52 Remotely . | . . . . Salvage Created 420 | . 334 34 52 Parts 21 | . 19 1 1 Haulers Intercepted . | . . . . Recyclers Shooed . | . . . . Parts Field Recycled . | . . . . Retrieved Matter . | . . . . Parts Self-Destructed . | . . . . Prevented . | . . . . Parts Restored . | . . . . Kills | -11 -10 -9 -8 ------- Run | Yrd Mat Mat Mat Combat Hostiles Destroyed 13 | . 10 2 1 Melee 1 | . . . 1 Guns 10 | . 10 . . AOE 2 | . . 2 . Classes Destroyed 3 | . 2 1 . Swarmer 3 | . 3 . . Grunt 7 | . 7 . . Sentry 3 | . . 2 1 Best Kill Streak 8 | . 8 2 1 Combat Bots Only 8 | . 8 2 1 Max Kills in Single Turn 1 | . 1 1 1 Gunslinging . | . . . . Exploded 1 | . . 1 . Melee 1 | . . . 1 Uniques/NPCs Destroyed . | . . . . Combat | -11 -10 -9 -8 -------- Run | Yrd Mat Mat Mat Hostile Shots Fired 122 | . 52 15 55 Missed 37 | . 11 7 19 Hits 85 | . 41 8 36 Melee 13 | . . . 13 Projectile 72 | . 41 8 23 AOE 1 | . . . 1 Critical Strikes 5 | . . 1 4 Damage Taken 1490 | . 456 176 858 Core 699 | . 52 71 576 Absorbed by Shields . | . . . . Core Remaining (%) 87 | 100 79 82 . Volleys Fired 39 | . 23 7 9 Largest 2 | . 2 2 1 Hottest 40 | . 40 40 30 Shots Fired 64 | . 46 9 9 Gun 58 | . 46 4 8 Cannon . | . . . . Launcher 6 | . . 5 1 Special . | . . . . Kinetic 58 | . 46 4 8 Thermal . | . . . . Explosive 6 | . . 5 1 Electromagnetic . | . . . . Robot Hit Streak 8 | . 8 3 1 Robot Miss Streak 5 | . 2 2 5 Penetration Max . | . . . . Secondary Targets 5 | . 5 . . Max Gunslinging Chain 1 | . 1 . . Shots Hit Robots 48 | . 33 5 10 Core Hits 31 | . 21 6 4 Critical Kills 1 | . 1 . . Critical Parts Destroyed . | . . . . Critical Strikes 7 | . 1 . 6 Destroy 1 | . 1 . . Sever 6 | . . . 6 Melee Attacks 16 | . . . 16 Impact . | . . . . Slashing 16 | . . . 16 Piercing . | . . . . Sneak Attacks . | . . . . Combat Hostiles . | . . . . Follow-up Attacks 1 | . . . 1 Damage Inflicted 723 | . 274 177 272 Guns 299 | . 274 10 15 Cannons . | . . . . Explosions 192 | . . 167 25 Melee 232 | . . . 232 Ramming . | . . . . Kinetic 299 | . 274 10 15 Thermal . | . . . . Explosive 192 | . . 167 25 Electromagnetic . | . . . . Impact . | . . . . Slashing 232 | . . . 232 Piercing . | . . . . Highest Corruption . | . . . . Average Corruption . | . . . . Corruption Purged . | . . . . Corruption Blocked . | . . . . Overload Shots . | . . . . Overflow Damage . | . . . . Projectiles . | . . . . Explosions . | . . . . Melee . | . . . . Knockbacks . | . . . . Impact . | . . . . Kinetic . | . . . . Secondary . | . . . . Self-Inflicted Damage 9 | . . . 9 Shots 1 | . . . 1 Rammed . | . . . . Targets Rammed . | . . . . Kicked . | . . . . Crushed . | . . . . Highest Temperature 46 | . 46 . . Average Temperature 15 | . 15 . . Received Heat Transfer 402 | . 231 18 153 Siege Activations . | . . . . Martial Activations . | . . . . Shielding Activations . | . . . . Robots Disrupted . | . . . . Combat Hostiles . | . . . . Robots Corrupted . | . . . . Combat Hostiles . | . . . . Parts Fried . | . . . . Impact Corruptions . | . . . . Robots Melted . | . . . . Combat Hostiles . | . . . . Parts Melted . | . . . . Heat Transferred . | . . . . Parts Sabotaged . | . . . . Parts Stolen . | . . . . Parts Stripped . | . . . . Power Chain Reactions . | . . . . Alert | -11 -10 -9 -8 ------- Run | Yrd Mat Mat Mat Maximum Alert Level 1 | . 1 . . Low Security (%) 97 | 100 90 100 100 Level 1 2 | . 9 . . Level 2 . | . . . . Level 3 . | . . . . Level 4 . | . . . . Level 5 . | . . . . High Security . | . . . . Max Security . | . . . . Peak Influence 200 | . 200 108 45 Initial 76 | . . 76 45 Average 38 | . 70 62 18 Influence Increases 512 | . 240 112 160 Destroy 0b10 Robot/C 260 | . 200 40 20 Destroy Leader 70 | . 40 20 10 Disable Machine 15 | . . 15 . Destroy Structure 32 | . . 22 10 Partial Spotted 30 | . . 15 15 Lose Combat Pursuer 105 | . . . 105 Influence Decreases 477 | . 60 184 233 Entered New Map 167 | . . 104 63 Time Decay 250 | . 60 50 140 Lost Part 60 | . . 30 30 Squads Dispatched 4 | . 2 1 1 Investigation 1 | . 1 . . Extermination . | . . . . Reinforcement 3 | . 1 1 1 Assault . | . . . . Garrison . | . . . . Intercept . | . . . . Searches Triggered . | . . . . Construction Impeded . | . . . . Haulers Reinforced . | . . . . Active Scanning Responses . | . . . . Cargo Convoy Interrupts . | . . . . Stealth | -11 -10 -9 -8 --------- Run | Yrd Mat Mat Mat Distress Signals 1 | . . . 1 Communications Jammed . | . . . . Distress Signals . | . . . . Times Spotted 44 | . 10 11 23 Peak Tracking Total 9 | . 7 8 9 Tactical Retreats 4 | . . . 4 Traps | -11 -10 -9 -8 ------- Run | Yrd Mat Mat Mat Traps Triggered 2 | . 1 1 . Indirectly . | . . . . Trap Hack Attempts . | . . . . Triggered . | . . . . Disarmed . | . . . . Reprogrammed . | . . . . Reused . | . . . . Traps Extracted . | . . . . Installed . | . . . . Triggered . | . . . . Machines | -11 -10 -9 -8 ---------- Run | Yrd Mat Mat Mat Machines Disabled 1 | . . 1 . Max in Single Turn 1 | . . 1 . Machines Repaired . | . . . . Machines Dismantled . | . . . . Machines Sabotaged . | . . . . Overloaded Fab Kills . | . . . . Hacking | -11 -10 -9 -8 --------- Run | Yrd Mat Mat Mat Machines Accessed 1 | . 1 . . Terminals 1 | . 1 . . Fabricators . | . . . . Repair Stations . | . . . . Recycling Units . | . . . . Scanalyzers . | . . . . Garrison Access . | . . . . Total Hacks 2 | . 2 . . Successful 2 | . 2 . . Failed . | . . . . Catastrophic . | . . . . Database Lockouts . | . . . . Manual . | . . . . Terminals 2 | . 2 . . Fabricators . | . . . . Repair Stations . | . . . . Recycling Units . | . . . . Scanalyzers . | . . . . Garrison Access . | . . . . Terminal Hacks 2 | . 2 . . Record 1 | . 1 . . Emergency Access Points 1 | . 1 . . Fabricator Hacks . | . . . . Repair Station Hacks . | . . . . Recycling Unit Hacks . | . . . . Scanalyzer . | . . . . Garrison Access Hacks . | . . . . Unauthorized Hacks . | . . . . Terminals . | . . . . Fabricators . | . . . . Repair Stations . | . . . . Recycling Units . | . . . . Scanalyzers . | . . . . Garrison Access . | . . . . Data Cores Recovered . | . . . . Used . | . . . . Hacking Detections . | . . . . Full Trace Events . | . . . . Feedback Events . | . . . . Feedback Blocked . | . . . . Robot Schematics Acquired . | . . . . Robots Built . | . . . . Authchips . | . . . . Time . | . . . . Total Robot Build Rating . | . . . . Part Schematics Acquired . | . . . . Parts Built . | . . . . Authchips . | . . . . Time . | . . . . Total Part Build Rating . | . . . . Part Studies Acquired . | . . . . Parts Repaired . | . . . . Time . | . . . . Parts Recycled . | . . . . Recycled Matter . | . . . . Retrieved Matter . | . . . . Retrieved Components . | . . . . Parts Scanalyzed . | . . . . Part Schematics Acquired . | . . . . Parts Damaged . | . . . . Bothacking | -11 -10 -9 -8 ------------ Run | Yrd Mat Mat Mat Used RIF Installer . | . . . . Robots Hacked . | . . . . Non-combat . | . . . . Combat . | . . . . Robot Hacks Applied . | . . . . Relay Couplers Released . | . . . . Fabnet Peak Effective % . | . . . . Robots Rewired . | . . . . Allies Hacked . | . . . . Hacks Repelled . | . . . . Allies | -11 -10 -9 -8 -------- Run | Yrd Mat Mat Mat Total Allies . | . . . . Largest Group . | . . . . Highest-Rated Group . | . . . . Highest-Rated Ally . | . . . . Total Orders . | . . . . Ally Attacks . | . . . . Total Damage . | . . . . Kills . | . . . . Allies Corrupted . | . . . . Allies Melted . | . . . . Intel | -11 -10 -9 -8 ------- Run | Yrd Mat Mat Mat Active Infowar (turns) . | . . . . Robot Analysis Total . | . . . . Derelict Logs Recovered . | . . . . Drone Launches . | . . . . Drone Recoveries . | . . . . Exploration | -11 -10 -9 -8 ------------- Run | Yrd Mat Mat Mat Turns Passed 710 | 62 203 104 341 Spaces Moved 608 | 39 84 132 353 Core 166 | 17 . . 149 Treads 93 | 22 69 . 2 Legs . | . . . . Wheels . | . . . . Hover . | . . . . Flight 349 | . 15 132 202 Fastest Speed 37 | 50 117 37 40 Average Speed 84 | 122 152 62 73 Slowest Speed 200 | 160 160 117 200 Overloaded Moves . | . . . . Propulsion Burnouts . | . . . . Robots Hopped 3 | . . 2 1 Potential Cave-ins . | . . . . Cave-ins Triggered . | . . . . Exploration Rate (%) 18 | 5 19 19 31 Regions Visited 3 Branch Regions . Pre-discovered Areas . | . . . . Known Exits Taken . | . . . . Unknown Exits Taken 3 | 1 1 1 . Scrap Searched . | . . . . Spaces Dug . | . . . . Terrain Destroyed 29 | . . 19 10 Melee . | . . . . Projectile . | . . . . AOE 29 | . . 19 10 Terrain Rammed . | . . . . Walls Destroyed . | . . . . Machines Disabled . | . . . . Actions | -11 -10 -9 -8 --------- Run | Yrd Mat Mat Mat Total 721 | 53 122 141 405 Wait 10 | . 5 . 5 Move 599 | 38 83 127 351 Hop 3 | . . 2 1 Pick Up 23 | 6 4 2 11 Fast Attach 2 | 2 . . . Attach 12 | 4 . . 8 Detach 1 | . . 1 . Swap 8 | 1 3 2 2 Drop 9 | 2 4 . 3 Fire 39 | . 23 7 9 Melee 15 | . . . 15 Ram . | . . . . Kick . | . . . . Crush . | . . . . Escape Stasis . | . . . . Rewire . | . . . . Trap . | . . . . Miscellaneous . | . . . . Route ------- -11/Scrapyard -10/Materials -9/Materials -8/Materials (discovered 1 exit: [*Fac]) History --------- Turn | Location | Event 4 | -11/Scrapyard | Discovered new exit (range 15) 63 | -11/Scrapyard | Entered Materials 244 | -10/Materials | Destroyed 8 combat bots 253 | -10/Materials | Discovered new exit (range 10) 266 | -10/Materials | Entered another Materials area 266 | -9/Materials | Evolved 2 slots: Power x1, Utility x1 308 | -9/Materials | Build established: Mutant 367 | -9/Materials | Discovered new exit (range 5) 370 | -9/Materials | Entered another Materials area 370 | -8/Materials | Evolved 2 slots: Propulsion x1, Utility x1 379 | -8/Materials | Lost 3 parts (1p1n1w) 673 | -8/Materials | Core integrity fell below 50% 682 | -8/Materials | Core integrity fell below 20% 705 | -8/Materials | Discovered new exit (range 13) 711 | -8/Materials | Destroyed by H-61 Shepherd with Heavy Assault Cannon Last Messages --------------- 00651_ Y-45 Defender Lgt. Armor Plating severed. 00654_ Y-45 Defender destroyed. 00656_ Lgt. Deuterium Engine destroyed. 00659_ L-31 Rogue Imp. Aluminum Leg severed. 00666_ Deuterium Engine severed. 00667_ Acquired Lgt. Treads. 00669_ Acquired 52 matter. 00670_ Critical hit (Burn: +37). 00671_ Lgt. Treads severed. 00673_ Acquired Deuterium Engine. 00674_ L-31 Rogue Imp. Ion Engine severed. 00676_ Scythe follow-up attack on L-31 Rogue. 00679_ Scythe destroyed. 00682_ Acquired Imp. Aluminum Leg. 00699_ ALERT: Suspicious intruders detected, dispatching Cutter reinforcements to area. 00705_ EXIT=FOUND 00706_ Knocked back. 00708_ C-17 Slicer knocked back. 00709_ Acquired Datajack. Map ----- +----------------------------------------------------+ | ??????????????????????????# #??# #??????# ??? | | ??????????????????????????# #??# #???????######??? | | ??????????????????????????# #??# #???????????????? | | ??????????????????????????# #??# #???????????????? | | ??????????????????????????# #??# #???????????????? | | ??????????????????????????? ???# #???????????????? | | ??????????????????????????? ??## ##??????????????? | | ??????????????????????##### ### !#??????????????? | | ????????????????????+ ########???????? | | ?????????????????????????## ### #????S #? | | ??????????????????????????? ??#### #??"" #? | | ??????????????????????????? ?????# # #? | | ?????????????????????????????????" + # | | ?????????????????????????????????# # #? | | ?????????????????????????????????#! #??#####? | | ??????????????????????????? ?????# ]#???????? | | ??????????????????????????? ?????# = ########??? | | ??????????????????????????? ?????#*[ # #??? | | ??????????????????######### ?????#! + "" #??? | | ?????????????????# # #????#[##### T" #??? | | ?????????????????# """ "" # #?#### #???# / "" #??? | | ?????????????????# """ Y" # ###! #???# #??? | | ?????????????????# """ "" # ##! #???# #??? | | ?????????????????# # ##! ########/###??? | | ?????????????????# """ %=# ##! #????? | | ?????????????????# """ @# ##! ########## #????? | | ?????????????????# """ # ###! #????????# #????? | | ?????????????????# c ######????????# #????? | | ?????????????????#####c### # #???????????# #????? | | ????????????????????# ############# #????? | | ????????????????????# #????? | | ????????????????????# ###############????? | | ????????????????????##### ##??????????????????? | | ????????????????????????# #??????????????????? | | ?????????????????????????# #??????????????????? | | ?????????????????????????# ##??????????????????? | | ?????????????????????????# #??????????????????? | | ?????????????????????????# ##??????????????????? | | ?????????????????????????# #???????????????????? | | ?????????????????????????# ???????????????????? | | ?????????????????????????+ H ??????????????????? | | ?????????????????????????# ??????????????????? | | ?????????????????????????# < ##??????????????????? | | ?????????????????????????# #???????????????????? | | ?????????????????????????#####???????????????????? | | ?????????????????????????????????????????????????? | | ?????????????????????????????????????????????????? | | ?????????????????????????????????????????????????? | | ?????????????????????????????????????????????????? | | ?????????????????????????????????????????????????? | +----------------------------------------------------+ Best States ------------- Heat Dissipation 31 Energy Generation 23 Energy Capacity 315 Matter Stores 300 Matter Capacity 300 Sight Range 16 Terrain Scan Density 10 Additional Mass Support 9 Evasion (%) 70 Recoil Reduction 2 Defensive Hacking 10 Item Schematics ----------------- None Robot Schematics ------------------ None Fabricated ------------ Nothing Repaired ---------- Nothing Studied --------- None Alien Tech Used ----------------- None Achievements -------------- None Challenges ------------ None Game ------ Seed DefenseDynamicDisintegrator Manual? 0 Play Time 00:14:54 Cumulative 18.6 hours Start 2025.10.25 @ 16:47:53 End 2025.10.25 @ 16:58:30 Sessions 1 Manual Loads 0 Difficulty Rogue Special Mode None Game No. 62 Rogue 62 Adventurer 0 Explorer 0 Win Type - Total 0 Types 0/0/0/0/0/0/0/0/0/0 Lore% 9 Gallery% 20 Achievement% 17 Wizard Run 0 Options --------- Layout 1 ASCII 0 Keyboard 0 Movement Mouse Keybinds 0 Fullscreen 1 Font 32/SmallcapsGlow Map View 50x35 Zoom Use 0% Tactical HUD 1 Map Filters NONE Filters NONE Steam 1 RUN: e6e3111a-b354-4882-bf6e-9d16bf8315ca